[Event "Titled Tuesday Blitz May 25 2021"]
[White "Pert, Richard G"]
[Black "Dan-Lowes"]
[WhiteFideId "404748"]
[WhiteElo "2441"]
[BlackElo "2076"]
[Result "1-0"]
[Round "06"]
[TimeControl "180+1"]
[Date "2021.05.25"]
[WhiteClock "0:00:27"]
[BlackClock "0:00:43"]

1. d4 {[%clk 0:03:00]}  Nf6 {[%clk 0:02:59]} 2. Bg5 {[%clk 0:03:00]}  Ne4 {[%clk 0:02:59]} 3. Bf4 {[%clk 0:03:00]}  c5 {[%clk 0:02:56]} 4. f3 {[%clk 0:02:59]}  Nf6 {[%clk 0:02:56]} 5. dxc5 {[%clk 0:02:58]}  Na6 {[%clk 0:02:45]} 6. e4 {[%clk 0:02:55]}  Nxc5 {[%clk 0:02:43]} 7. Nc3 {[%clk 0:02:55]}  d6 {[%clk 0:02:39]} 8. Qd2 {[%clk 0:02:46]}  Ne6 {[%clk 0:02:38]} 9. Be3 {[%clk 0:02:44]}  g6 {[%clk 0:02:39]} 10. O-O-O {[%clk 0:02:38]}  a6 {[%clk 0:02:39]} 11. Kb1 {[%clk 0:02:33]}  Bg7 {[%clk 0:02:38]} 12. Bh6 {[%clk 0:02:32]}  b5 {[%clk 0:02:37]} 13. Bxg7 {[%clk 0:02:29]}  Nxg7 {[%clk 0:02:36]} 14. Nge2 {[%clk 0:02:10]}  Be6 {[%clk 0:02:28]} 15. Nf4 {[%clk 0:02:08]}  O-O {[%clk 0:02:25]} 16. Nxe6 {[%clk 0:01:57]}  Nxe6 {[%clk 0:02:24]} 17. Qh6 {[%clk 0:01:57]}  Kh8 {[%clk 0:02:19]} 18. h4 {[%clk 0:01:55]}  Rc8 {[%clk 0:02:15]} 19. Nd5 {[%clk 0:01:49]}  Ng8 {[%clk 0:02:02]} 20. Qe3 {[%clk 0:01:44]}  Nf6 {[%clk 0:02:01]} 21. Nxf6 {[%clk 0:01:42]}  exf6 {[%clk 0:02:01]} 22. h5 {[%clk 0:01:39]}  g5 {[%clk 0:02:00]} 23. h6 {[%clk 0:01:33]}  Qc7 {[%clk 0:01:58]} 24. Bd3 {[%clk 0:01:29]}  Rfd8 {[%clk 0:01:55]} 25. Rc1 {[%clk 0:01:23]}  Nf4 {[%clk 0:01:46]} 26. g3 {[%clk 0:01:21]}  Ne6 {[%clk 0:01:43]} 27. f4 {[%clk 0:01:19]}  Qc5 {[%clk 0:01:43]} 28. Qd2 {[%clk 0:01:08]}  d5 {[%clk 0:01:34]} 29. e5 {[%clk 0:01:03]}  fxe5 {[%clk 0:01:33]} 30. fxe5 {[%clk 0:01:03]}  Qd4 {[%clk 0:01:28]} 31. Rhf1 {[%clk 0:00:59]}  Rc7 {[%clk 0:01:24]} 32. Qe2 {[%clk 0:00:59]}  Nc5 {[%clk 0:01:20]} 33. Bf5 {[%clk 0:00:56]}  Ne4 {[%clk 0:01:16]} 34. Rcd1 {[%clk 0:00:47]}  Qxe5 {[%clk 0:01:16]} 35. Qxe4 {[%clk 0:00:35]}  Qxe4 {[%clk 0:00:45]} 36. Bxe4 {[%clk 0:00:35]}  d4 {[%clk 0:00:45]} 37. Rf6 {[%clk 0:00:31]}  Kg8 {[%clk 0:00:43]} 38. a3 {[%clk 0:00:30]}  Kf8 {[%clk 0:00:42]} 39. Bxh7 {[%clk 0:00:27]}  Ke7 {[%clk 0:00:43]} 40. Rxa6 {[%clk 0:00:27]} 1-0


[Site "https://www.chess.com"]

[Event "Titled Tuesday Blitz May 25 2021"]
[White "Rasulov, Vugar"]
[Black "Vetokhin, Savva"]
[WhiteFideId "13402390"]
[BlackFideId "44144474"]
[WhiteElo "2553"]
[BlackElo "2185"]
[Result "1-0"]
[Round "06"]
[TimeControl "180+1"]
[Date "2021.05.25"]
[WhiteClock "0:01:23"]
[BlackClock "0:00:42"]

1. Nf3 {[%clk 0:03:00]}  d5 {[%clk 0:02:59]} 2. b3 {[%clk 0:03:01]}  Nf6 {[%clk 0:02:57]} 3. Bb2 {[%clk 0:03:01]}  e6 {[%clk 0:02:57]} 4. e3 {[%clk 0:03:01]}  Be7 {[%clk 0:02:57]} 5. c4 {[%clk 0:03:01]}  O-O {[%clk 0:02:56]} 6. Be2 {[%clk 0:03:01]}  c5 {[%clk 0:02:56]} 7. O-O {[%clk 0:03:01]}  Nc6 {[%clk 0:02:56]} 8. cxd5 {[%clk 0:03:02]}  Nxd5 {[%clk 0:02:55]} 9. Nc3 {[%clk 0:03:01]}  b6 {[%clk 0:02:54]} 10. d4 {[%clk 0:02:58]}  cxd4 {[%clk 0:02:54]} 11. Nxd5 {[%clk 0:02:54]}  Qxd5 {[%clk 0:02:54]} 12. Nxd4 {[%clk 0:02:55]}  Nxd4 {[%clk 0:02:53]} 13. Bxd4 {[%clk 0:02:55]}  Bb7 {[%clk 0:02:43]} 14. Bf3 {[%clk 0:02:55]}  Qd7 {[%clk 0:02:42]} 15. Bxg7 {[%clk 0:02:27]}  Qxd1 {[%clk 0:02:36]} 16. Rfxd1 {[%clk 0:02:28]}  Kxg7 {[%clk 0:02:28]} 17. Bxb7 {[%clk 0:02:28]}  Rad8 {[%clk 0:02:29]} 18. Be4 {[%clk 0:02:21]}  Rxd1+ {[%clk 0:02:22]} 19. Rxd1 {[%clk 0:02:22]}  Rd8 {[%clk 0:02:21]} 20. Bd3 {[%clk 0:02:22]}  Bc5 {[%clk 0:02:11]} 21. Kf1 {[%clk 0:02:23]}  e5 {[%clk 0:02:09]} 22. Ke2 {[%clk 0:02:22]}  h6 {[%clk 0:02:08]} 23. Rc1 {[%clk 0:02:21]}  a5 {[%clk 0:02:07]} 24. Rc4 {[%clk 0:02:21]}  Kf6 {[%clk 0:02:03]} 25. Rh4 {[%clk 0:02:20]}  Kg5 {[%clk 0:02:02]} 26. g3 {[%clk 0:02:20]}  f5 {[%clk 0:02:01]} 27. f4+ {[%clk 0:02:15]}  Kg6 {[%clk 0:01:53]} 28. g4 {[%clk 0:02:11]}  e4 {[%clk 0:01:47]} 29. gxf5+ {[%clk 0:02:11]}  Kxf5 {[%clk 0:01:47]} 30. Bc4 {[%clk 0:02:03]}  Kg6 {[%clk 0:01:40]} 31. Rg4+ {[%clk 0:01:55]}  Kf6 {[%clk 0:01:39]} 32. Rh4 {[%clk 0:01:55]}  Kg6 {[%clk 0:01:39]} 33. Be6 {[%clk 0:01:50]}  Bb4 {[%clk 0:01:29]} 34. f5+ {[%clk 0:01:51]}  Kg5 {[%clk 0:01:28]} 35. Rxe4 {[%clk 0:01:51]}  Rd2+ {[%clk 0:01:28]} 36. Kf3 {[%clk 0:01:51]}  Rxh2 {[%clk 0:01:28]} 37. Rg4+ {[%clk 0:01:50]}  Kf6 {[%clk 0:01:28]} 38. Ke4 {[%clk 0:01:49]}  h5 {[%clk 0:01:22]} 39. Rg6+ {[%clk 0:01:49]}  Ke7 {[%clk 0:01:22]} 40. Bc4 {[%clk 0:01:44]}  Rh4+ {[%clk 0:01:20]} 41. Kd3 {[%clk 0:01:42]}  Rh2 {[%clk 0:01:19]} 42. f6+ {[%clk 0:01:42]}  Kd7 {[%clk 0:01:18]} 43. a4 {[%clk 0:01:40]}  h4 {[%clk 0:01:12]} 44. f7 {[%clk 0:01:40]}  h3 {[%clk 0:01:11]} 45. Rxb6 {[%clk 0:01:40]}  Rf2 {[%clk 0:01:10]} 46. Rh6 {[%clk 0:01:35]}  h2 {[%clk 0:01:10]} 47. Bd5 {[%clk 0:01:34]}  Ke7 {[%clk 0:01:06]} 48. Rh8 {[%clk 0:01:32]}  Kd7 {[%clk 0:01:02]} 49. e4 {[%clk 0:01:23]}  Bd6 {[%clk 0:01:02]} 50. e5 {[%clk 0:01:23]}  Bb4 {[%clk 0:00:49]} 51. e6+ {[%clk 0:01:23]}  Kd6 {[%clk 0:00:42]} 52. f8=Q+ {[%clk 0:01:20]}  Rxf8 {[%clk 0:00:41]} 53. Rxf8 {[%clk 0:01:21]}  Kxd5 {[%clk 0:00:42]} 54. Rh8 {[%clk 0:01:22]}  Kxe6 {[%clk 0:00:41]} 55. Rxh2 {[%clk 0:01:22]}  Kd5 {[%clk 0:00:42]} 56. Rh5+ {[%clk 0:01:22]}  Kc6 {[%clk 0:00:42]} 57. Kc4 {[%clk 0:01:23]} 1-0


[Site "https://www.chess.com"]

[Event "Titled Tuesday Blitz May 25 2021"]
[White "Rich, Albert J"]
[Black "Vlassov, Nikolai"]
[WhiteFideId "2028735"]
[BlackFideId "4103360"]
[WhiteElo "2388"]
[BlackElo "2407"]
[Result "0-1"]
[Round "06"]
[TimeControl "180+1"]
[Date "2021.05.25"]
[WhiteClock "0:00:05"]
[BlackClock "0:00:41"]

1. d4 {[%clk 0:03:00]}  Nf6 {[%clk 0:02:59]} 2. f3 {[%clk 0:03:00]}  Nc6 {[%clk 0:02:57]} 3. d5 {[%clk 0:02:57]}  Ne5 {[%clk 0:02:56]} 4. Qd4 {[%clk 0:02:50]}  Ng6 {[%clk 0:02:56]} 5. e4 {[%clk 0:02:47]}  e5 {[%clk 0:02:56]} 6. Qc3 {[%clk 0:02:42]}  a5 {[%clk 0:02:51]} 7. a3 {[%clk 0:02:42]}  c6 {[%clk 0:02:45]} 8. Qb3 {[%clk 0:02:30]}  Bc5 {[%clk 0:02:42]} 9. c4 {[%clk 0:02:25]}  O-O {[%clk 0:02:26]} 10. Ne2 {[%clk 0:02:21]}  b5 {[%clk 0:02:18]} 11. cxb5 {[%clk 0:02:15]}  cxd5 {[%clk 0:02:17]} 12. exd5 {[%clk 0:02:14]}  Qb6 {[%clk 0:02:15]} 13. Nbc3 {[%clk 0:02:05]}  Bf2+ {[%clk 0:02:15]} 14. Kd1 {[%clk 0:02:05]}  Bb7 {[%clk 0:02:03]} 15. Bg5 {[%clk 0:02:02]}  a4 {[%clk 0:02:01]} 16. Nxa4 {[%clk 0:01:47]}  Bxd5 {[%clk 0:01:58]} 17. Nxb6 {[%clk 0:00:43]}  Bxb3+ {[%clk 0:01:56]} 18. Kd2 {[%clk 0:00:43]}  Bxb6 {[%clk 0:01:56]} 19. Bxf6 {[%clk 0:00:40]}  gxf6 {[%clk 0:01:55]} 20. Nc3 {[%clk 0:00:38]}  d5 {[%clk 0:01:52]} 21. Bd3 {[%clk 0:00:28]}  Nf4 {[%clk 0:01:44]} 22. Bf5 {[%clk 0:00:24]}  d4 {[%clk 0:01:32]} 23. Ne4 {[%clk 0:00:22]}  Ba5+ {[%clk 0:01:32]} 24. Kc1 {[%clk 0:00:19]}  Kg7 {[%clk 0:01:17]} 25. Kb1 {[%clk 0:00:13]}  d3 {[%clk 0:01:07]} 26. Nc5 {[%clk 0:00:11]}  Bc2+ {[%clk 0:01:03]} 27. Ka2 {[%clk 0:00:11]}  Rfb8 {[%clk 0:00:52]} 28. g3 {[%clk 0:00:10]}  Ne6 {[%clk 0:00:47]} 29. Nxd3 {[%clk 0:00:05]}  Rxb5 {[%clk 0:00:41]} 0-1


[Site "https://www.chess.com"]

[Event "Titled Tuesday Blitz May 25 2021"]
[White "Rozhkov, Viacheslav"]
[Black "Vakhlamov, Igor L."]
[WhiteFideId "4181484"]
[BlackFideId "24126748"]
[WhiteElo "2324"]
[BlackElo "2405"]
[Result "0-1"]
[Round "06"]
[TimeControl "180+1"]
[Date "2021.05.25"]
[WhiteClock "0:00:01"]
[BlackClock "0:01:08"]

1. e4 {[%clk 0:02:30]}  c5 {[%clk 0:02:59]} 2. Nf3 {[%clk 0:02:29]}  Nc6 {[%clk 0:02:59]} 3. d4 {[%clk 0:02:29]}  cxd4 {[%clk 0:03:00]} 4. Nxd4 {[%clk 0:02:29]}  g6 {[%clk 0:03:01]} 5. Nc3 {[%clk 0:02:30]}  Bg7 {[%clk 0:03:01]} 6. Be3 {[%clk 0:02:30]}  Nf6 {[%clk 0:03:01]} 7. Nxc6 {[%clk 0:02:30]}  bxc6 {[%clk 0:03:02]} 8. e5 {[%clk 0:02:30]}  Ng8 {[%clk 0:03:01]} 9. f4 {[%clk 0:02:30]}  f6 {[%clk 0:02:56]} 10. e6 {[%clk 0:02:29]}  d5 {[%clk 0:02:46]} 11. f5 {[%clk 0:02:29]}  Nh6 {[%clk 0:02:32]} 12. g4 {[%clk 0:02:27]}  Rb8 {[%clk 0:02:12]} 13. Qf3 {[%clk 0:01:50]}  Rxb2 {[%clk 0:01:59]} 14. O-O-O {[%clk 0:01:49]}  Rb4 {[%clk 0:01:53]} 15. Bc5 {[%clk 0:01:17]}  Rxg4 {[%clk 0:01:44]} 16. Nxd5 {[%clk 0:00:56]}  cxd5 {[%clk 0:01:42]} 17. Bb5+ {[%clk 0:00:55]}  Kf8 {[%clk 0:01:42]} 18. Rxd5 {[%clk 0:00:56]}  Qc7 {[%clk 0:01:31]} 19. Rhd1 {[%clk 0:00:49]}  Kg8 {[%clk 0:01:22]} 20. Rd8+ {[%clk 0:00:24]}  Bf8 {[%clk 0:01:21]} 21. Qa3 {[%clk 0:00:03]}  Nxf5 {[%clk 0:01:15]} 22. Bd7 {[%clk 0:00:01]}  Qxd8 {[%clk 0:01:08]} 0-1


[Site "https://www.chess.com"]

[Event "Titled Tuesday Blitz May 25 2021"]
[White "Rustemov, Alexander"]
[Black "Nozdrachev, Leonid"]
[WhiteFideId "4119002"]
[BlackFideId "24113433"]
[WhiteElo "2702"]
[BlackElo "2246"]
[Result "1-0"]
[Round "06"]
[TimeControl "180+1"]
[Date "2021.05.25"]
[WhiteClock "0:01:21"]
[BlackClock "0:00:17"]

1. d4 {[%clk 0:03:00]}  Nf6 {[%clk 0:02:07]} 2. c4 {[%clk 0:02:59]}  e6 {[%clk 0:02:05]} 3. Nf3 {[%clk 0:02:59]}  d5 {[%clk 0:02:04]} 4. Nc3 {[%clk 0:02:59]}  Be7 {[%clk 0:02:04]} 5. Bg5 {[%clk 0:02:57]}  O-O {[%clk 0:02:03]} 6. e3 {[%clk 0:02:57]}  c5 {[%clk 0:02:01]} 7. dxc5 {[%clk 0:02:54]}  Bxc5 {[%clk 0:02:00]} 8. cxd5 {[%clk 0:02:52]}  exd5 {[%clk 0:01:59]} 9. Bxf6 {[%clk 0:02:40]}  Qxf6 {[%clk 0:01:56]} 10. Qxd5 {[%clk 0:02:40]}  Bb4 {[%clk 0:01:51]} 11. Qd4 {[%clk 0:02:39]}  Qe7 {[%clk 0:01:46]} 12. a3 {[%clk 0:02:35]}  Nc6 {[%clk 0:01:42]} 13. Qd2 {[%clk 0:02:25]}  Rd8 {[%clk 0:01:40]} 14. Qc2 {[%clk 0:02:24]}  Ba5 {[%clk 0:01:11]} 15. Be2 {[%clk 0:02:22]}  Bg4 {[%clk 0:01:03]} 16. O-O {[%clk 0:02:21]}  Rac8 {[%clk 0:01:04]} 17. Rac1 {[%clk 0:02:18]}  Bh5 {[%clk 0:01:00]} 18. Rfd1 {[%clk 0:02:15]}  Bg6 {[%clk 0:00:57]} 19. Qb3 {[%clk 0:02:09]}  Bxc3 {[%clk 0:00:52]} 20. Rxd8+ {[%clk 0:02:03]}  Qxd8 {[%clk 0:00:45]} 21. Qxc3 {[%clk 0:02:01]}  h6 {[%clk 0:00:39]} 22. Qd2 {[%clk 0:01:53]}  Qxd2 {[%clk 0:00:34]} 23. Nxd2 {[%clk 0:01:54]}  Rd8 {[%clk 0:00:33]} 24. Nc4 {[%clk 0:01:51]}  f6 {[%clk 0:00:29]} 25. Rd1 {[%clk 0:01:40]}  Rxd1+ {[%clk 0:00:27]} 26. Bxd1 {[%clk 0:01:41]}  Kf7 {[%clk 0:00:26]} 27. Nd6+ {[%clk 0:01:39]}  Ke6 {[%clk 0:00:26]} 28. Nxb7 {[%clk 0:01:39]}  Kd7 {[%clk 0:00:24]} 29. Nc5+ {[%clk 0:01:38]}  Kd6 {[%clk 0:00:24]} 30. Nb3 {[%clk 0:01:34]}  a5 {[%clk 0:00:22]} 31. Kf1 {[%clk 0:01:31]}  Ne5 {[%clk 0:00:18]} 32. Nxa5 {[%clk 0:01:26]}  Nd3 {[%clk 0:00:17]} 33. Bc2 {[%clk 0:01:21]} 1-0


[Site "https://www.chess.com"]

[Event "Titled Tuesday Blitz May 25 2021"]
[White "Salem, A.R. Saleh"]
[Black "Reprintsev, Alexander"]
[WhiteFideId "9301348"]
[BlackFideId "14100541"]
[WhiteElo "2659"]
[BlackElo "2177"]
[Result "1-0"]
[Round "06"]
[TimeControl "180+1"]
[Date "2021.05.25"]
[WhiteClock "0:00:09"]
[BlackClock "0:00:14"]

1. d4 {[%clk 0:03:00]}  d5 {[%clk 0:02:59]} 2. c4 {[%clk 0:03:00]}  e5 {[%clk 0:02:59]} 3. dxe5 {[%clk 0:03:00]}  d4 {[%clk 0:02:59]} 4. Nf3 {[%clk 0:03:00]}  Nc6 {[%clk 0:02:59]} 5. a3 {[%clk 0:03:01]}  g6 {[%clk 0:03:00]} 6. Bg5 {[%clk 0:03:00]}  Qd7 {[%clk 0:02:59]} 7. Nbd2 {[%clk 0:02:51]}  h6 {[%clk 0:02:58]} 8. Bf4 {[%clk 0:02:47]}  g5 {[%clk 0:02:58]} 9. Bg3 {[%clk 0:02:48]}  g4 {[%clk 0:02:57]} 10. Nh4 {[%clk 0:02:47]}  Be7 {[%clk 0:02:57]} 11. h3 {[%clk 0:02:43]}  h5 {[%clk 0:02:57]} 12. Nb3 {[%clk 0:02:00]}  Qd8 {[%clk 0:02:50]} 13. Nf3 {[%clk 0:01:28]}  gxf3 {[%clk 0:02:49]} 14. exf3 {[%clk 0:01:28]}  Bf5 {[%clk 0:02:39]} 15. Bd3 {[%clk 0:01:26]}  Nh6 {[%clk 0:02:39]} 16. O-O {[%clk 0:01:23]}  Qd7 {[%clk 0:02:38]} 17. Be4 {[%clk 0:01:19]}  O-O-O {[%clk 0:02:32]} 18. Bf4 {[%clk 0:01:20]}  Bxe4 {[%clk 0:02:21]} 19. fxe4 {[%clk 0:01:20]}  Rhg8 {[%clk 0:02:09]} 20. Qxh5 {[%clk 0:01:18]}  Rh8 {[%clk 0:02:03]} 21. Bxh6 {[%clk 0:01:06]}  Qe6 {[%clk 0:02:01]} 22. f4 {[%clk 0:01:02]}  Rxh6 {[%clk 0:02:01]} 23. Qf5 {[%clk 0:01:02]}  Qxf5 {[%clk 0:01:53]} 24. exf5 {[%clk 0:01:02]}  Bh4 {[%clk 0:01:53]} 25. Rf3 {[%clk 0:00:56]}  d3 {[%clk 0:01:42]} 26. Rd1 {[%clk 0:00:55]}  Nd4 {[%clk 0:01:18]} 27. Nxd4 {[%clk 0:00:54]}  Rxd4 {[%clk 0:01:17]} 28. Rfxd3 {[%clk 0:00:47]}  Rxf4 {[%clk 0:00:53]} 29. g3 {[%clk 0:00:15]}  Rxf5 {[%clk 0:00:53]} 30. gxh4 {[%clk 0:00:15]}  b6 {[%clk 0:00:54]} 31. Rd4 {[%clk 0:00:11]}  Rxe5 {[%clk 0:00:53]} 32. Rf1 {[%clk 0:00:11]}  Rg6+ {[%clk 0:00:49]} 33. Kh1 {[%clk 0:00:09]}  Re3 {[%clk 0:00:47]} 34. Kh2 {[%clk 0:00:06]}  Re2+ {[%clk 0:00:46]} 35. Kh1 {[%clk 0:00:07]}  Rg3 {[%clk 0:00:46]} 36. Rxf7 {[%clk 0:00:02]}  Rxh3+ {[%clk 0:00:46]} 37. Kg1 {[%clk 0:00:03]}  Re6 {[%clk 0:00:19]} 38. Rdd7 {[%clk 0:00:02]}  Rc6 {[%clk 0:00:19]} 39. Rd4 {[%clk 0:00:02]}  Rb3 {[%clk 0:00:18]} 40. Rf2 {[%clk 0:00:03]}  Rg6+ {[%clk 0:00:18]} 41. Kh2 {[%clk 0:00:02]}  Re6 {[%clk 0:00:17]} 42. h5 {[%clk 0:00:01]}  Ree3 {[%clk 0:00:17]} 43. Rh4 {[%clk 0:00:02]}  Re7 {[%clk 0:00:16]} 44. h6 {[%clk 0:00:02]}  Rh7 {[%clk 0:00:17]} 45. Rg2 {[%clk 0:00:03]}  Kb7 {[%clk 0:00:16]} 46. Rg7 {[%clk 0:00:03]}  Rxb2+ {[%clk 0:00:16]} 47. Kg3 {[%clk 0:00:04]}  Rh8 {[%clk 0:00:17]} 48. h7 {[%clk 0:00:04]}  Rb3+ {[%clk 0:00:17]} 49. Kg4 {[%clk 0:00:03]}  Rb1 {[%clk 0:00:16]} 50. Kh5 {[%clk 0:00:04]}  Rc1 {[%clk 0:00:15]} 51. Kh6 {[%clk 0:00:04]}  a5 {[%clk 0:00:15]} 52. Rg8 {[%clk 0:00:04]}  Rxh7+ {[%clk 0:00:15]} 53. Kxh7 {[%clk 0:00:05]}  Rc3 {[%clk 0:00:15]} 54. a4 {[%clk 0:00:04]}  Ra3 {[%clk 0:00:15]} 55. c5 {[%clk 0:00:04]}  bxc5 {[%clk 0:00:14]} 56. Rg5 {[%clk 0:00:05]}  Kb6 {[%clk 0:00:14]} 57. Rh6+ {[%clk 0:00:05]}  c6 {[%clk 0:00:14]} 58. Rh4 {[%clk 0:00:06]}  Rb3 {[%clk 0:00:13]} 59. Rgg4 {[%clk 0:00:06]}  Rb4 {[%clk 0:00:14]} 60. Rc4 {[%clk 0:00:07]}  Kc7 {[%clk 0:00:13]} 61. Kg6 {[%clk 0:00:06]}  Kd6 {[%clk 0:00:14]} 62. Kf6 {[%clk 0:00:07]}  Kd5 {[%clk 0:00:15]} 63. Rcg4 {[%clk 0:00:06]}  c4 {[%clk 0:00:15]} 64. Rg5+ {[%clk 0:00:06]}  Kd6 {[%clk 0:00:15]} 65. Rxa5 {[%clk 0:00:07]}  c5 {[%clk 0:00:14]} 66. Rh5 {[%clk 0:00:06]}  c3 {[%clk 0:00:12]} 67. Raxc5 {[%clk 0:00:06]}  Rf4+ {[%clk 0:00:12]} 68. Rhf5 {[%clk 0:00:07]}  Rxf5+ {[%clk 0:00:12]} 69. Rxf5 {[%clk 0:00:08]}  c2 {[%clk 0:00:13]} 70. Rf1 {[%clk 0:00:08]}  Kc5 {[%clk 0:00:14]} 71. Rc1 {[%clk 0:00:08]}  Kb4 {[%clk 0:00:14]} 72. Rxc2 {[%clk 0:00:09]} 1-0


[Site "https://www.chess.com"]

[Event "Titled Tuesday Blitz May 25 2021"]
[White "Sarana, Alexey"]
[Black "Petriashvili, Nikoloz"]
[WhiteFideId "24133795"]
[BlackFideId "13611216"]
[WhiteElo "2629"]
[BlackElo "2430"]
[Result "0-1"]
[Round "06"]
[TimeControl "180+1"]
[Date "2021.05.25"]
[WhiteClock "0:00:01"]
[BlackClock "0:00:28"]

1. e4 {[%clk 0:03:00]}  c5 {[%clk 0:02:59]} 2. Nf3 {[%clk 0:03:01]}  Nc6 {[%clk 0:02:58]} 3. d4 {[%clk 0:03:02]}  cxd4 {[%clk 0:02:59]} 4. Nxd4 {[%clk 0:03:02]}  Nf6 {[%clk 0:03:00]} 5. Nc3 {[%clk 0:03:03]}  e5 {[%clk 0:03:00]} 6. Ndb5 {[%clk 0:03:04]}  d6 {[%clk 0:03:01]} 7. Bg5 {[%clk 0:03:03]}  a6 {[%clk 0:03:01]} 8. Na3 {[%clk 0:03:04]}  b5 {[%clk 0:03:01]} 9. Bxf6 {[%clk 0:03:04]}  gxf6 {[%clk 0:03:01]} 10. Nd5 {[%clk 0:03:05]}  f5 {[%clk 0:03:01]} 11. Bd3 {[%clk 0:03:00]}  Be6 {[%clk 0:03:00]} 12. c4 {[%clk 0:02:51]}  Nd4 {[%clk 0:02:50]} 13. exf5 {[%clk 0:02:45]}  Bxd5 {[%clk 0:02:34]} 14. cxd5 {[%clk 0:02:45]}  Qa5+ {[%clk 0:02:13]} 15. Qd2 {[%clk 0:02:42]}  b4 {[%clk 0:02:04]} 16. Nc2 {[%clk 0:02:28]}  Qxd5 {[%clk 0:01:58]} 17. Ne3 {[%clk 0:02:24]}  Qb7 {[%clk 0:01:55]} 18. f3 {[%clk 0:01:01]}  Rc8 {[%clk 0:01:51]} 19. O-O {[%clk 0:00:59]}  Bh6 {[%clk 0:01:50]} 20. Kh1 {[%clk 0:01:00]}  Bxe3 {[%clk 0:01:42]} 21. Qxe3 {[%clk 0:01:00]}  f6 {[%clk 0:01:43]} 22. f4 {[%clk 0:00:41]}  O-O {[%clk 0:01:42]} 23. Be4 {[%clk 0:00:40]}  Qg7 {[%clk 0:01:39]} 24. Rad1 {[%clk 0:00:36]}  Kh8 {[%clk 0:01:36]} 25. Qf2 {[%clk 0:00:32]}  Rce8 {[%clk 0:01:30]} 26. Rd3 {[%clk 0:00:28]}  Qf7 {[%clk 0:01:31]} 27. Rh3 {[%clk 0:00:25]}  d5 {[%clk 0:01:26]} 28. Bb1 {[%clk 0:00:25]}  Nc6 {[%clk 0:01:26]} 29. Qc5 {[%clk 0:00:22]}  Rc8 {[%clk 0:01:23]} 30. fxe5 {[%clk 0:00:23]}  Nxe5 {[%clk 0:01:24]} 31. Qxb4 {[%clk 0:00:23]}  Rfd8 {[%clk 0:01:19]} 32. Qd4 {[%clk 0:00:22]}  Nc6 {[%clk 0:01:19]} 33. Qh4 {[%clk 0:00:20]}  d4 {[%clk 0:01:18]} 34. Rd1 {[%clk 0:00:20]}  Ne5 {[%clk 0:01:18]} 35. Rg3 {[%clk 0:00:19]}  d3 {[%clk 0:01:17]} 36. Qh6 {[%clk 0:00:14]}  d2 {[%clk 0:01:14]} 37. h3 {[%clk 0:00:14]}  Nc4 {[%clk 0:00:52]} 38. Be4 {[%clk 0:00:08]}  Rd4 {[%clk 0:00:46]} 39. Bf3 {[%clk 0:00:04]}  Rcd8 {[%clk 0:00:46]} 40. Be2 {[%clk 0:00:02]}  Nxb2 {[%clk 0:00:45]} 41. Rb1 {[%clk 0:00:03]}  Re4 {[%clk 0:00:32]} 42. Bf3 {[%clk 0:00:02]}  Re1+ {[%clk 0:00:32]} 43. Kh2 {[%clk 0:00:01]}  Rxb1 {[%clk 0:00:30]} 44. Bh5 {[%clk 0:00:02]}  Qf8 {[%clk 0:00:28]} 45. Bg6 {[%clk 0:00:01]}  Qxh6 {[%clk 0:00:28]} 0-1


[Site "https://www.chess.com"]

[Event "Titled Tuesday Blitz May 25 2021"]
[White "Shapiro, David"]
[Black "Przybylski, Wojciech"]
[WhiteFideId "24133523"]
[BlackFideId "1117599"]
[WhiteElo "2261"]
[BlackElo "2317"]
[Result "1-0"]
[Round "06"]
[TimeControl "180+1"]
[Date "2021.05.25"]
[WhiteClock "0:00:24"]
[BlackClock "0:00:01"]

1. d4 {[%clk 0:02:58]}  Nf6 {[%clk 0:02:57]} 2. Bf4 {[%clk 0:02:55]}  e6 {[%clk 0:02:55]} 3. Nc3 {[%clk 0:02:55]}  c5 {[%clk 0:02:47]} 4. d5 {[%clk 0:02:54]}  d6 {[%clk 0:02:42]} 5. dxe6 {[%clk 0:02:53]}  fxe6 {[%clk 0:02:41]} 6. e4 {[%clk 0:02:52]}  e5 {[%clk 0:02:40]} 7. Bg5 {[%clk 0:02:49]}  Be7 {[%clk 0:02:40]} 8. Bc4 {[%clk 0:02:48]}  Nc6 {[%clk 0:02:36]} 9. Bxf6 {[%clk 0:02:42]}  Bxf6 {[%clk 0:02:35]} 10. Qd5 {[%clk 0:02:41]}  Rf8 {[%clk 0:02:18]} 11. Nb5 {[%clk 0:02:40]}  Be7 {[%clk 0:02:13]} 12. O-O-O {[%clk 0:02:38]}  Nd4 {[%clk 0:02:10]} 13. c3 {[%clk 0:02:37]}  Be6 {[%clk 0:02:01]} 14. Qxb7 {[%clk 0:02:30]}  Bxc4 {[%clk 0:02:01]} 15. Nc7+ {[%clk 0:02:18]}  Kf7 {[%clk 0:01:57]} 16. Nxa8 {[%clk 0:02:18]}  Ne6 {[%clk 0:01:26]} 17. b3 {[%clk 0:02:18]}  Qa5 {[%clk 0:01:13]} 18. bxc4 {[%clk 0:01:55]}  Qxa2 {[%clk 0:00:52]} 19. Nf3 {[%clk 0:01:45]}  Qxc4 {[%clk 0:00:48]} 20. Kd2 {[%clk 0:01:34]}  Nf4 {[%clk 0:00:34]} 21. Kc2 {[%clk 0:01:29]}  Qa2+ {[%clk 0:00:27]} 22. Qb2 {[%clk 0:01:27]}  Qxb2+ {[%clk 0:00:26]} 23. Kxb2 {[%clk 0:01:28]}  Rxa8 {[%clk 0:00:26]} 24. g3 {[%clk 0:01:23]}  Ne6 {[%clk 0:00:25]} 25. Ra1 {[%clk 0:01:19]}  a5 {[%clk 0:00:25]} 26. Ra4 {[%clk 0:01:17]}  Bd8 {[%clk 0:00:24]} 27. Nd2 {[%clk 0:01:14]}  Ke7 {[%clk 0:00:22]} 28. Nc4 {[%clk 0:01:14]}  Ng5 {[%clk 0:00:18]} 29. Rha1 {[%clk 0:01:07]}  Nxe4 {[%clk 0:00:17]} 30. Nxe5 {[%clk 0:01:01]}  Nxf2 {[%clk 0:00:14]} 31. Nc6+ {[%clk 0:01:01]}  Kd7 {[%clk 0:00:13]} 32. Nxd8 {[%clk 0:01:02]}  Rxd8 {[%clk 0:00:12]} 33. Rxa5 {[%clk 0:01:02]}  Nd3+ {[%clk 0:00:12]} 34. Kc2 {[%clk 0:01:02]}  Ne5 {[%clk 0:00:11]} 35. Ra7+ {[%clk 0:01:02]}  Ke6 {[%clk 0:00:11]} 36. Rxg7 {[%clk 0:01:03]}  Rf8 {[%clk 0:00:11]} 37. Rd1 {[%clk 0:00:59]}  h5 {[%clk 0:00:08]} 38. Rh7 {[%clk 0:00:56]}  Rf2+ {[%clk 0:00:03]} 39. Rd2 {[%clk 0:00:56]}  Rf6 {[%clk 0:00:03]} 40. Rxh5 {[%clk 0:00:54]}  c4 {[%clk 0:00:03]} 41. Re2 {[%clk 0:00:51]}  Kd5 {[%clk 0:00:03]} 42. g4 {[%clk 0:00:50]}  Kc5 {[%clk 0:00:03]} 43. Rf5 {[%clk 0:00:47]}  Rg6 {[%clk 0:00:03]} 44. g5 {[%clk 0:00:45]}  Kd5 {[%clk 0:00:03]} 45. h4 {[%clk 0:00:44]}  Rg8 {[%clk 0:00:03]} 46. h5 {[%clk 0:00:43]}  Ra8 {[%clk 0:00:02]} 47. g6 {[%clk 0:00:37]}  Ra2+ {[%clk 0:00:02]} 48. Kd1 {[%clk 0:00:37]}  Ra1+ {[%clk 0:00:02]} 49. Kd2 {[%clk 0:00:37]}  Ke6 {[%clk 0:00:02]} 50. Rg5 {[%clk 0:00:30]}  Kf6 {[%clk 0:00:02]} 51. Rexe5 {[%clk 0:00:24]}  dxe5 {[%clk 0:00:01]} 52. g7 {[%clk 0:00:25]}  Ra2+ {[%clk 0:00:01]} 53. Ke3 {[%clk 0:00:24]} 1-0


[Site "https://www.chess.com"]